bitfinex/quotes_BTCUSD_20250205
["timestamp","ask_amount","ask_price","bid_price","bid_amount"]
[1738779212948,0.0476,97006.0,96978.0,0.7637388]
[1738779212949,0.0476,97006.0,97000.0,0.154639]
[1738779213460,0.0476,97006.0,97001.0,0.154636]
[1738779214060,0.0476,97006.0,96992.0,0.00103085]
[1738779214061,0.0476,97006.0,97000.0,0.154638]
[1738779214267,0.15464,96999.0,96985.0,0.154662]
[1738779214464,0.10250365,96998.0,96976.0,0.68174176]
[1738779214669,0.164674,96978.0,96930.0,0.21416431]
[1738779214878,0.31697765,96978.0,96940.0,0.206311]
[1738779215141,0.164707,96957.0,96934.0,0.23674004]
[1738779215290,0.164707,96957.0,96934.0,0.08199704]
[1738779215291,0.164714,96953.0,96934.0,0.08199704]
[1738779215491,0.34514709,96953.0,96934.0,0.08199704]
[1738779215698,0.39391765,96953.0,96934.0,0.08199704]
[1738779216352,0.39391765,96953.0,96925.0,0.154758]
[1738779216557,0.45573765,96953.0,96924.0,0.08199704]
[1738779216762,0.45573765,96953.0,96925.0,0.00103163]
[1738779216973,0.40345631,96953.0,96924.0,0.08199704]
[1738779217125,0.40345631,96953.0,96924.0,0.23675504]
[1738779217330,0.40345631,96953.0,96924.0,0.08199704]
[1738779217758,0.40345631,96953.0,96924.0,0.28834204]
[1738779218077,0.40345631,96953.0,96924.0,0.08199704]
[1738779218253,0.40345631,96953.0,96926.0,0.154757]
[1738779218452,0.40345631,96953.0,96924.0,0.08199704]
[1738779218920,0.01,96931.0,96924.0,0.08199704]
[1738779219120,0.01,96913.0,96902.0,0.0001073]
[1738779219406,0.01,96947.0,96911.0,0.10353549]
[1738779219634,0.14657077,96953.0,96930.0,0.33067414]
[1738779219635,0.00953866,96953.0,96930.0,0.33067414]
[1738779219776,0.00953866,96953.0,96931.0,0.00103135]
[1738779219963,0.01,96952.0,96940.0,0.154733]
[1738779220165,0.01,96942.0,96914.0,0.69200859]
[1738779220365,0.01,96940.0,96915.0,0.0830286]
[1738779220589,0.01,96940.0,96934.0,0.154742]
[1738779220790,0.01,96945.0,96924.0,0.69200859]
[1738779220975,0.01,96946.0,96925.0,0.00103152]
[1738779221393,0.01,96940.0,96918.0,0.0204791]
[1738779221595,0.33067414,96970.0,96916.0,0.17787478]
[1738779221596,0.01,96949.0,96920.0,0.15]
[1738779221794,0.01,96949.0,96922.0,0.15]
[1738779222003,0.01,96945.0,96933.0,0.154745]
[1738779222207,0.01,96945.0,96924.0,0.206347]
[1738779222422,0.01,96945.0,96934.0,0.154744]
[1738779222816,0.01,96940.0,96921.0,0.01855325]
[1738779223020,0.01,96930.0,96917.0,0.0001069]
[1738779223254,0.01,96930.0,96917.0,0.2064669]
[1738779223464,0.01,96930.0,96917.0,0.0001069]
[1738779223761,0.01,96918.0,96917.0,0.0001069]
[1738779223962,0.0778,96931.0,96918.0,0.20636]
[1738779224122,0.0778,96931.0,96919.0,0.00103167]
[1738779224341,0.0778,96931.0,96928.0,0.154753]
[1738779224545,0.0462,96939.0,96929.0,0.154751]
[1738779224743,0.0562,96939.0,96920.0,0.00103168]
[1738779224943,0.0562,96939.0,96917.0,0.0001069]
[1738779224944,0.154753,96929.0,96917.0,0.0001069]
[1738779225118,0.01,96931.0,96922.0,0.154762]
[1738779225319,0.01,96931.0,96923.0,0.15476]
[1738779225524,0.01,96931.0,96918.0,0.154768]
[1738779225726,0.164769,96919.0,96917.0,0.0001069]
[1738779225924,0.11353309,96918.0,96917.0,0.0001069]
[1738779226127,0.11250365,96918.0,96917.0,0.0001069]
[1738779227156,0.11353309,96918.0,96917.0,0.0001069]
[1738779227357,1.8311336,96918.0,96917.0,0.0001069]
[1738779227536,1.83010416,96918.0,96917.0,0.0001069]
[1738779227841,0.164792,96904.0,96902.0,0.0001073]
[1738779228042,0.11250365,96904.0,96902.0,0.0001073]
[1738779228262,0.11250365,96904.0,96876.0,7e-05]
[1738779228263,0.01,96889.0,96876.0,7e-05]
[1738779228490,0.164843,96872.0,96871.0,0.0004]
[1738779228697,0.214557,96863.0,96849.0,0.0217234]
[1738779228825,0.275137,96863.0,96849.0,0.0217234]
[1738779229291,0.264057,96863.0,96849.0,0.0217234]
[1738779229424,0.1092,96863.0,96849.0,0.0217234]
[1738779229627,0.21170365,96863.0,96850.0,0.08199704]
[1738779229901,0.01,96863.0,96858.0,0.206487]
[1738779230101,0.08972,96880.0,96858.0,0.206487]
[1738779230102,0.01,96874.0,96858.0,0.206487]
[1738779230254,0.01,96872.0,96849.0,0.0217234]
[1738779230457,0.01,96871.0,96862.0,0.24039618]
[1738779230689,0.01,96871.0,96863.0,0.04468802]
[1738779230890,0.01,96871.0,96862.0,0.08553918]
[1738779231395,0.01,96874.0,96863.0,0.206477]
[1738779231595,0.01,96874.0,96862.0,0.08553918]
[1738779231799,0.0594,96882.0,96863.0,0.00103229]
[1738779232001,0.0594,96882.0,96864.0,0.02930555]
[1738779232225,0.01,96882.0,96866.0,0.20647]
[1738779232480,0.01,96882.0,96864.0,0.02930555]
[1738779232481,0.01,96885.0,96867.0,0.00103219]
[1738779232689,0.01,96885.0,96880.0,0.154829]
[1738779232979,0.0494,96901.0,96890.0,0.154814]
[1738779232980,0.01,96897.0,96890.0,0.154814]
[1738779233187,0.0494,96901.0,96890.0,0.0154814]
[1738779233392,0.01,96909.0,96890.0,0.0154814]
[1738779233638,0.01,96906.0,96896.0,0.154804]
[1738779233833,0.01,96909.0,96893.0,0.00103192]
[1738779234056,0.01,96909.0,96880.0,0.00103189]
[1738779234235,0.01,96915.0,96881.0,0.25353547]
[1738779234442,0.0863,96909.0,96893.0,0.154808]
[1738779234645,0.01,96889.0,96859.0,0.08199704]
[1738779234848,0.01,96863.0,96840.0,0.08203729]
[1738779235047,0.21188644,96863.0,96840.0,4.025e-05]
[1738779235251,0.210857,96863.0,96840.0,4.025e-05]
[1738779235465,0.233857,96863.0,96840.0,4.025e-05]
[1738779235663,0.40867005,96863.0,96840.0,4.025e-05]
[1738779236221,0.38567005,96863.0,96840.0,4.025e-05]
[1738779236424,0.31336065,96863.0,96840.0,0.36145825]
[1738779236620,0.31336065,96863.0,96842.0,0.154889]
[1738779236843,0.31336065,96863.0,96840.0,4.025e-05]
[1738779238454,0.32275056,96863.0,96840.0,4.025e-05]
[1738779238819,0.32275056,96863.0,96842.0,0.206521]
[1738779239020,0.32275056,96863.0,96840.0,4.025e-05]
[1738779239021,0.16789356,96863.0,96843.0,0.00430327]
[1738779239202,0.11189356,96863.0,96851.0,0.206501]
[1738779239404,0.12189356,96863.0,96847.0,0.1655733]
[1738779239556,0.12189356,96863.0,96848.0,0.154881]
[1738779239755,0.11250365,96863.0,96847.0,0.0106913]
[1738779239955,0.11250365,96863.0,96848.0,0.206508]
[1738779240156,0.11250365,96863.0,96849.0,0.2282294]
[1738779240455,0.11250365,96863.0,96852.0,0.154874]
[1738779240696,0.01,96870.0,96853.0,0.00103241]
[1738779240908,0.01,96863.0,96854.0,0.154871]
[1738779241056,0.01,96863.0,96850.0,0.206503]
[1738779241252,0.01,96863.0,96849.0,0.0217234]
[1738779241253,0.11250365,96863.0,96849.0,0.0217234]
[1738779241467,0.18298986,96863.0,96849.0,0.0217234]
[1738779241689,0.17298986,96863.0,96849.0,0.0217234]
[1738779241889,0.11250365,96863.0,96849.0,0.0217234]
[1738779242095,0.10250365,96863.0,96849.0,0.0217234]
[1738779242314,0.11250365,96863.0,96849.0,0.02275584]
[1738779242885,0.01,96863.0,96849.0,0.02275584]
[1738779243105,0.01,96880.0,96851.0,0.206502]
[1738779243305,0.01,96878.0,96864.0,0.206475]
[1738779243554,0.01,96878.0,96863.0,0.00855392]
[1738779243754,0.01,96878.0,96872.0,0.154843]
[1738779243957,0.0785,96897.0,96881.0,0.206437]
[1738779243958,0.01,96889.0,96881.0,0.206437]
[1738779244339,0.01,96889.0,96873.0,0.206453]
[1738779244508,0.01,96875.0,96849.0,0.0217234]
[1738779244709,0.01,96863.0,96849.0,0.0217234]
[1738779244969,0.01,96863.0,96852.0,0.154875]
[1738779245208,0.01,96863.0,96849.0,0.0217234]
[1738779245545,0.11250365,96863.0,96849.0,0.0217234]
[1738779245876,0.18830365,96863.0,96849.0,0.0217234]
[1738779246774,0.18830365,96863.0,96862.0,0.08564618]
[1738779247796,1.68830365,96863.0,96862.0,0.08564618]
[1738779249919,1.69775053,96863.0,96862.0,0.08564618]
[1738779250687,0.35260753,96863.0,96862.0,0.08564618]
[1738779251379,0.41442753,96863.0,96862.0,0.08564618]
[1738779251581,0.45511118,96863.0,96862.0,0.08564618]
[1738779252193,0.35260753,96863.0,96862.0,0.08564618]
[1738779253041,0.27680753,96863.0,96862.0,0.08564618]
[1738779253876,0.26736065,96863.0,96862.0,0.08564618]
[1738779254345,0.11250365,96863.0,96862.0,0.08564618]
[1738779254552,0.26736065,96863.0,96862.0,0.08564618]
[1738779254956,0.10250365,96863.0,96862.0,0.08564618]
[1738779255157,0.154857,96863.0,96862.0,0.08564618]
[1738779255334,0.28284635,96863.0,96862.0,0.08564618]
[1738779255533,0.26736065,96863.0,96862.0,0.08564618]
[1738779259311,0.11250365,96863.0,96862.0,0.08564618]
[1738779259512,0.01,96863.0,96862.0,0.08564618]
[1738779259714,0.01,96867.0,96862.0,0.08564618]
[1738779259869,0.01,96863.0,96862.0,0.08564618]
[1738779261608,0.30449245,96863.0,96862.0,0.08564618]
[1738779261801,0.31686065,96863.0,96862.0,0.08564618]
[1738779263657,0.26936065,96863.0,96862.0,0.08564618]
[1738779264808,0.012,96863.0,96862.0,0.08564618]
[1738779265016,0.002,96863.0,96862.0,0.05124637]
[1738779265189,0.002,96863.0,96862.0,0.07196024]
[1738779265654,0.002,96863.0,96862.0,0.07299254]
[1738779265892,0.002,96863.0,96862.0,0.17549619]
[1738779266099,0.002,96863.0,96862.0,0.2075659]
[1738779266304,0.002,96863.0,96862.0,0.2065336]
[1738779266673,0.00022471,96880.0,96862.0,0.4386336]
[1738779266816,0.00022471,96880.0,96870.0,0.154846]
[1738779267022,0.00022471,96880.0,96870.0,0.98245994]
[1738779267222,0.00022471,96880.0,96879.0,0.154832]
[1738779267444,0.00022471,96880.0,96879.0,1.30579975]
[1738779267721,0.00022471,96880.0,96879.0,1.30476779]
[1738779267961,0.09044428,96891.0,96890.0,0.154814]
[1738779268185,0.09044428,96891.0,96890.0,0.94932624]
[1738779269116,0.01,96916.0,96890.0,0.79451224]
[1738779269359,0.01,96912.0,96882.0,0.206436]
[1738779269618,0.01,96912.0,96885.0,0.20643]
[1738779269859,0.01,96912.0,96902.0,0.154794]
[1738779270097,0.01,96912.0,96892.0,0.69200859]
[1738779270339,0.01,96915.0,96893.0,0.00103183]
[1738779270599,0.01,96904.0,96875.0,0.154838]
[1738779270892,0.01,96884.0,96862.0,0.05124637]
[1738779271121,0.01,96883.0,96870.0,0.154846]
[1738779271372,0.01,96875.0,96862.0,0.05124637]
[1738779271863,0.01,96875.0,96867.0,0.15485]
[1738779272099,0.10250365,96882.0,96862.0,0.05124637]
[1738779272100,0.01,96878.0,96862.0,0.05124637]
[1738779272320,0.01,96881.0,96862.0,0.05124637]
[1738779272551,0.01,96879.0,96863.0,0.00103222]
[1738779272805,0.01,96875.0,96865.0,0.206472]
[1738779273045,0.01,96888.0,96866.0,0.00103223]
[1738779273523,0.01,96879.0,96864.0,0.00522786]
[1738779273743,0.01,96879.0,96865.0,0.206471]
[1738779273950,0.01,96879.0,96869.0,0.154847]
[1738779274382,0.01,96883.0,96871.0,0.154844]
[1738779274578,0.01,96888.0,96879.0,0.154832]
[1738779274802,0.01,96883.0,96879.0,0.0154832]
[1738779274979,0.01,96890.0,96879.0,0.0154832]
[1738779275202,0.01,96898.0,96889.0,0.154815]
[1738779275463,0.01,96898.0,96887.0,0.154818]
[1738779275664,0.01,96898.0,96873.0,0.69200859]
[1738779275947,0.01,96898.0,96874.0,0.10353563]
[1738779276277,0.00222471,96912.0,96898.0,0.1548]
[1738779276278,0.01,96904.0,96898.0,0.1548]
[1738779276556,0.01222471,96912.0,96900.0,0.206398]
[1738779276758,0.01222471,96912.0,96896.0,0.69200859]
[1738779277059,0.01222471,96912.0,96902.0,0.154795]
[1738779277207,0.01,96903.0,96882.0,0.69200859]
[1738779277402,0.01,96903.0,96894.0,0.154807]
[1738779277646,0.01,96903.0,96883.0,0.206434]
[1738779278057,0.11250365,96911.0,96884.0,0.00103192]
[1738779278274,0.01,96903.0,96882.0,0.69200859]
[1738779278641,0.164794,96903.0,96882.0,0.69200859]
[1738779278845,0.164794,96903.0,96889.0,0.154816]
[1738779279045,0.01,96899.0,96882.0,0.69200859]
[1738779279258,0.01,96902.0,96893.0,0.206411]
[1738779279463,0.01,96902.0,96894.0,0.154808]
[1738779279703,0.01,96902.0,96895.0,0.154806]
[1738779280032,0.01,96902.0,96886.0,0.206427]
[1738779280338,0.01,96902.0,96893.0,0.154809]
[1738779280532,0.01,96902.0,96882.0,0.69200859]
[1738779280674,0.01,96902.0,96893.0,0.154809]
[1738779280919,0.01,96902.0,96882.0,0.69200859]
[1738779281084,0.01,96902.0,96883.0,0.206434]
[1738779281284,0.01,96902.0,96891.0,0.154811]
[1738779281485,0.01,96902.0,96882.0,0.69200859]
[1738779281703,0.01,96902.0,96891.0,0.154812]
[1738779282042,0.01,96902.0,96892.0,0.154811]
[1738779282528,0.01,96903.0,96882.0,0.69200859]
[1738779282765,0.01,96907.0,96883.0,0.15585693]
[1738779282982,0.01,96890.0,96862.0,0.05124637]
[1738779283188,0.01,96887.0,96864.0,0.10353573]
[1738779283361,0.01,96881.0,96862.0,0.05124637]
[1738779283592,0.01,96878.0,96866.0,0.08199704]
[1738779283794,0.01,96900.0,96867.0,0.10353571]
[1738779284002,0.01,96898.0,96870.0,0.33067414]
[1738779284171,0.154791,96905.0,96862.0,0.05124637]
[1738779284172,0.01,96893.0,96873.0,0.154841]
[1738779284374,0.01,96890.0,96862.0,0.05124637]
[1738779284590,0.01,96890.0,96879.0,0.206442]
[1738779284903,0.01,96890.0,96863.0,0.10250365]
[1738779285017,0.01,96881.0,96862.0,0.05124637]
[1738779285223,0.01,96872.0,96862.0,0.05124637]
[1738779285423,0.01,96863.0,96862.0,0.05124637]
[1738779285648,0.26736065,96863.0,96862.0,0.05124637]
[1738779286319,0.27781986,96863.0,96862.0,0.05124637]
[1738779286807,0.26736065,96863.0,96862.0,0.05124637]
[1738779287255,0.01,96863.0,96862.0,0.05124637]
[1738779287489,0.01,96873.0,96862.0,0.05124637]
[1738779287696,0.01,96871.0,96862.0,0.07185761]
[1738779287898,0.01,96871.0,96862.0,0.05124637]
[1738779288115,0.01,96871.0,96863.0,0.154857]
[1738779288336,0.01,96871.0,96862.0,0.05124637]
[1738779289039,0.01,96871.0,96862.0,0.20610537]
[1738779289803,0.01,96871.0,96862.0,0.05124637]
[1738779290452,0.01,96863.0,96862.0,0.05124637]
[1738779290591,0.164857,96863.0,96862.0,0.05124637]
[1738779290791,0.26736065,96863.0,96862.0,0.05124637]
[1738779290997,0.35613996,96863.0,96862.0,0.05124637]
[1738779291191,0.26736065,96863.0,96862.0,0.05124637]
[1738779292748,0.012,96863.0,96862.0,0.05124637]
[1738779293267,0.002,96863.0,96862.0,0.05124637]
[1738779294029,0.166857,96863.0,96862.0,0.05124637]
[1738779296517,0.26936065,96863.0,96862.0,0.05124637]
[1738779297875,0.27136065,96863.0,96862.0,0.05124637]
[1738779300486,0.004,96863.0,96862.0,0.05124637]
[1738779300609,0.004,96863.0,96862.0,0.89811396]
[1738779300814,0.004,96863.0,96862.0,1.00061761]
[1738779301237,0.004,96863.0,96862.0,1.15061761]
[1738779301464,0.00222471,96890.0,96870.0,0.2147753]
[1738779301661,0.154817,96888.0,96871.0,0.10250365]
[1738779301862,0.154843,96873.0,96862.0,0.05124637]
[1738779302059,0.01,96875.0,96871.0,0.01923119]
[1738779302336,0.01,96872.0,96871.0,0.01923119]
[1738779302938,0.01,96879.0,96862.0,0.05124637]
[1738779303145,0.01,96891.0,96869.0,0.2147753]
[1738779303345,0.154797,96901.0,96883.0,0.154824]
[1738779303565,0.154797,96901.0,96880.0,0.206439]
[1738779303566,0.01,96902.0,96889.0,0.154816]
[1738779303764,0.01,96902.0,96889.0,0.15584791]
[1738779304192,0.00213311,96890.0,96889.0,0.154816]
[1738779304568,0.00213311,96890.0,96879.0,0.69200859]
[1738779304768,0.00213311,96890.0,96880.0,0.01459691]
[1738779305283,0.00213311,96890.0,96883.0,0.154825]
[1738779305657,0.00213311,96890.0,96888.0,0.154817]
[1738779305858,0.00213311,96890.0,96889.0,0.10353557]
[1738779306060,0.00213311,96890.0,96889.0,0.10353549]
[1738779306196,0.00213311,96890.0,96889.0,0.13536661]
[1738779306413,0.00213311,96890.0,96889.0,0.03286296]
[1738779306611,0.00213311,96890.0,96860.0,0.2147753]
[1738779306612,0.00213311,96890.0,96883.0,0.154825]
[1738779306797,0.00213311,96890.0,96881.0,0.206438]
[1738779306991,0.00213311,96890.0,96867.0,0.206467]
[1738779307239,0.00213311,96890.0,96881.0,0.206438]
[1738779307456,0.00213311,96890.0,96889.0,0.154816]
[1738779307656,0.00213311,96890.0,96889.0,0.95036013]
[1738779307846,0.00099371,96890.0,96889.0,0.94932824]
[1738779308000,0.00099371,96890.0,96889.0,1.13137201]
[1738779308201,0.00099371,96890.0,96889.0,1.12977201]
[1738779308585,0.00422471,96912.0,96911.0,0.154781]
[1738779308785,0.00422471,96912.0,96911.0,0.96580285]
[1738779308900,0.00422471,96912.0,96911.0,0.96477134]
[1738779309323,0.00422471,96912.0,96911.0,1.17447134]
[1738779309522,0.00422471,96912.0,96911.0,1.19367591]
[1738779309729,0.00422471,96912.0,96911.0,1.22565757]
[1738779310156,0.00422471,96912.0,96911.0,1.24865757]
[1738779310359,0.09044428,96953.0,96916.0,0.304773]
[1738779310573,0.09044428,96953.0,96916.0,1.47658901]
[1738779310973,0.09044428,96953.0,96916.0,0.45743115]
[1738779312238,0.09044428,96953.0,96916.0,0.48043115]
[1738779312718,0.09044428,96953.0,96916.0,0.45743115]
[1738779313368,0.01,96954.0,96916.0,0.45743115]
[1738779313631,0.01,96965.0,96916.0,0.45743115]
[1738779313825,0.00022471,96968.0,96916.0,0.45743115]
[1738779313826,0.00022471,96968.0,96944.0,0.2147753]
[1738779314037,0.00022471,96968.0,96958.0,0.154705]
[1738779314237,0.00022471,96968.0,96959.0,0.15573417]
[1738779314441,0.00022471,96968.0,96959.0,0.00103117]
[1738779314697,0.00022471,96968.0,96956.0,0.69200859]
[1738779314894,0.00022471,96968.0,96957.0,0.03094993]
[1738779315100,0.00022471,96968.0,96958.0,0.00103116]
[1738779315508,0.00022471,96968.0,96967.0,0.154691]
[1738779315683,0.00022471,96968.0,96964.0,0.154695]
[1738779316087,0.01,96967.0,96957.0,0.03094993]
[1738779316295,0.216256,96967.0,96958.0,0.0154781]
[1738779316700,0.00222471,96968.0,96958.0,0.0154781]
[1738779316701,0.154704,96959.0,96958.0,0.0154781]
[1738779316910,0.01,96951.0,96942.0,0.69200859]
[1738779317107,0.01,96950.0,96939.0,0.154735]
[1738779317289,0.01,96950.0,96933.0,0.206328]
[1738779317500,0.01,96950.0,96934.0,0.00103139]
[1738779317706,0.01,96953.0,96941.0,0.206311]
[1738779317912,0.01,96953.0,96942.0,0.00103135]
[1738779318286,0.01,96953.0,96943.0,0.00103136]
[1738779318492,0.01,96966.0,96943.0,0.00103136]
[1738779318702,0.01,96967.0,96953.0,0.2147753]
[1738779318909,0.01,96967.0,96960.0,0.154701]
[1738779319117,0.01,96972.0,96966.0,0.154692]
[1738779319323,0.01,96980.0,96967.0,0.00103116]
[1738779319753,0.01,96972.0,96967.0,0.00103116]
[1738779320169,0.01022471,96977.0,96967.0,0.15572216]
[1738779320375,0.01022471,96977.0,96967.0,0.00103116]
[1738779320502,0.01,96967.0,96948.0,0.206295]
[1738779320719,0.01,96961.0,96941.0,0.08199704]
[1738779320934,0.01,96958.0,96943.0,0.15473]
[1738779321139,0.01,96958.0,96946.0,0.154724]
[1738779321357,0.01,96958.0,96944.0,0.154728]
[1738779321562,0.01,96957.0,96952.0,0.154715]
[1738779321921,0.01,96957.0,96940.0,0.15]
[1738779321922,0.01,96963.0,96954.0,0.412566]
[1738779322125,0.01,96963.0,96955.0,0.00103125]
[1738779322540,0.01,96963.0,96962.0,0.154699]
[1738779323138,0.01222471,96968.0,96961.0,0.0010312]
[1738779323345,0.00222471,96968.0,96967.0,0.154691]
[1738779323549,0.00222471,96968.0,96967.0,0.15572212]
[1738779325108,0.00222471,96968.0,96960.0,0.69200859]
[1738779325109,0.01,96964.0,96960.0,0.69200859]
[1738779325312,0.01,96956.0,96950.0,0.69200859]
[1738779325516,0.01,96951.0,96926.0,0.69200859]
[1738779325719,0.164734,96941.0,96932.0,0.23674404]
[1738779325976,0.01,96937.0,96922.0,0.206351]
[1738779326178,0.01,96937.0,96921.0,0.08199704]
[1738779326384,0.01,96937.0,96925.0,0.15]
[1738779326591,0.01,96937.0,96933.0,0.154745]
[1738779326793,0.01,96935.0,96930.0,0.15475]
[1738779326967,0.01,96935.0,96933.0,0.154745]
[1738779327186,0.01,96935.0,96934.0,0.0154745]
[1738779327953,0.154782,96910.0,96909.0,0.08199704]
[1738779328156,0.01,96896.0,96860.0,0.2147753]
[1738779328359,0.01,96892.0,96863.0,0.08199704]
[1738779328564,0.01,96883.0,96857.0,0.01047597]
[1738779328769,0.01,96880.0,96856.0,0.206491]
[1738779328980,0.01,96880.0,96847.0,0.0106913]
[1738779328981,0.01,96877.0,96872.0,0.10059613]
[1738779329180,0.01,96873.0,96872.0,0.09145103]
[1738779329605,0.01,96873.0,96866.0,0.154852]
[1738779329829,0.0796,96889.0,96867.0,0.00103224]
[1738779329986,0.01,96880.0,96874.0,0.154838]
[1738779330180,0.01,96880.0,96863.0,0.206477]
[1738779330384,0.01,96880.0,96865.0,0.361326]
[1738779330633,0.0796,96889.0,96866.0,0.10353578]
[1738779330835,0.1,96975.0,96866.0,0.10353578]
[1738779330836,0.01,96902.0,96894.0,0.154808]
[1738779331009,0.01,96908.0,96902.0,0.154794]
[1738779331208,0.01,96908.0,96872.0,0.00103184]
[1738779331459,0.01,96908.0,96902.0,0.154794]
[1738779331658,0.01,96908.0,96873.0,0.20515638]
[1738779331863,0.01,96908.0,96906.0,0.154788]
[1738779332059,0.01,96908.0,96890.0,0.206419]
[1738779332338,0.01,96908.0,96906.0,0.154788]
[1738779332586,0.01,96892.0,96891.0,0.03061117]
[1738779333825,0.09262944,96892.0,96891.0,0.03061117]
[1738779334012,0.154813,96891.0,96870.0,0.206461]
[1738779334221,0.01,96880.0,96873.0,0.154841]
[1738779334419,0.01,96880.0,96876.0,0.154836]
[1738779334616,0.01,96880.0,96877.0,0.0154836]
[1738779335569,0.164842,96873.0,96862.0,0.20610437]
[1738779335797,0.01,96866.0,96862.0,0.05124637]
[1738779335982,0.01,96863.0,96862.0,0.05124637]
[1738779337158,0.19563309,96863.0,96862.0,0.05124637]
[1738779338269,0.19460365,96863.0,96862.0,0.05124637]
[1738779338476,0.19563309,96863.0,96862.0,0.05124637]
[1738779338838,0.19460365,96863.0,96862.0,0.05124637]
[1738779339243,0.0921,96863.0,96862.0,0.05124637]
[1738779339583,0.11250365,96863.0,96862.0,0.05124637]
[1738779339745,0.11353309,96863.0,96862.0,0.05124637]
[1738779339925,0.10353309,96863.0,96862.0,0.05124637]
[1738779340151,0.10250365,96863.0,96862.0,0.05124637]
[1738779343490,0.10353309,96863.0,96862.0,0.05124637]
[1738779343695,0.11802501,96863.0,96862.0,0.05124637]
[1738779344184,0.10250365,96863.0,96862.0,0.05124637]
[1738779344588,0.206464,96869.0,96862.0,0.05124637]
[1738779344589,0.128,96892.0,96862.0,0.05124637]
[1738779344770,0.128,96892.0,96863.0,0.0010324]
[1738779344971,0.00102944,96891.0,96890.0,0.154814]
[1738779345207,0.0815,96908.0,96890.0,0.0154814]
[1738779345549,0.0815,96908.0,96872.0,0.00103203]
[1738779345763,0.206383,96907.0,96875.0,0.08199704]
[1738779345971,0.0815,96908.0,96876.0,0.10353559]
[1738779346379,0.0815,96908.0,96874.0,0.15]
[1738779346380,0.154806,96895.0,96874.0,0.15]
[1738779346604,0.10250365,96907.0,96874.0,0.10250365]
[1738779346808,0.00102944,96906.0,96876.0,0.206449]
[1738779347012,0.15470793,96898.0,96876.0,0.206449]
[1738779347221,0.154812,96892.0,96878.0,0.206444]
[1738779347425,0.154822,96886.0,96875.0,0.02525036]
[1738779347628,0.00102944,96888.0,96875.0,0.02525036]
[1738779347856,0.10250365,96887.0,96862.0,0.05124637]
[1738779348057,0.206434,96883.0,96862.0,0.05124637]
[1738779348259,0.1296,96880.0,96862.0,0.05124637]
[1738779348465,0.206445,96878.0,96862.0,0.05124637]
[1738779348667,0.10353309,96877.0,96862.0,0.05124637]
[1738779348821,0.154846,96871.0,96862.0,0.05124637]
[1738779349019,0.154856,96864.0,96862.0,0.05124637]
[1738779349248,0.10250365,96863.0,96862.0,0.05124637]
[1738779350807,0.154838,96875.0,96863.0,0.154857]
[1738779351034,0.1296,96880.0,96862.0,0.05124637]
[1738779351190,0.10250365,96879.0,96863.0,0.00103227]
[1738779351600,0.10250365,96879.0,96864.0,0.206475]
[1738779351835,0.10250365,96879.0,96863.0,0.206477]
[1738779352036,0.00102944,96878.0,96862.0,0.05124637]
[1738779352239,0.154846,96871.0,96862.0,0.05124637]
[1738779352443,0.10250365,96870.0,96862.0,0.07185701]
[1738779353264,0.154856,96864.0,96862.0,0.05124637]
[1738779353473,0.10353309,96863.0,96862.0,0.05124637]
[1738779353678,0.10250365,96863.0,96862.0,0.05124637]
[1738779354490,0.25736065,96863.0,96862.0,0.05124637]
[1738779354705,0.0477,96880.0,96862.0,0.05124637]
[1738779354847,0.10250365,96879.0,96862.0,0.05124637]
[1738779355042,0.154836,96877.0,96866.0,0.154851]
[1738779355269,0.0477,96880.0,96862.0,0.05124637]
[1738779355473,0.206424,96888.0,96863.0,0.00103225]
[1738779355758,0.10250365,96887.0,96863.0,0.00103225]
[1738779356176,0.154823,96885.0,96874.0,0.154839]
[1738779356356,0.0782,96892.0,96875.0,0.0154839]
[1738779356623,0.0782,96892.0,96865.0,0.206472]
[1738779356624,0.10250365,96891.0,96865.0,0.206472]
[1738779356799,0.10250365,96891.0,96866.0,0.00103217]
[1738779356975,0.10250365,96891.0,96868.0,0.154849]
[1738779356976,0.25731665,96891.0,96868.0,0.154849]
[1738779357160,0.25731765,96891.0,96876.0,0.154836]
[1738779357366,0.0498,96896.0,96889.0,0.154815]
[1738779357549,0.075,96905.0,96879.0,0.00103201]
[1738779357752,0.0498,96915.0,96882.0,0.15]
[1738779357964,0.0498,96915.0,96880.0,0.10353566]
[1738779357965,0.0498,96915.0,96899.0,0.154799]
[1738779358210,0.0498,96915.0,96900.0,0.206396]
[1738779358385,0.0498,96915.0,96905.0,0.15479]
[1738779358819,0.00102944,96914.0,96890.0,0.69200859]
[1738779359014,0.0498,96915.0,96890.0,0.90661406]
[1738779359209,0.0498,96915.0,96901.0,0.154796]
[1738779359409,0.0498,96915.0,96902.0,0.154794]
[1738779359666,0.0498,96915.0,96903.0,0.0154794]
[1738779359785,0.10250365,96907.0,96890.0,0.69200859]
[1738779359988,0.00102944,96906.0,96881.0,0.15]
[1738779360184,0.10250365,96905.0,96880.0,0.69200859]
[1738779360479,0.10250365,96905.0,96893.0,0.154809]
[1738779361005,0.10250365,96905.0,96886.0,0.206428]
[1738779361006,0.0022245,96908.0,96902.0,0.154795]
[1738779361207,0.0022245,96908.0,96904.0,0.206389]
[1738779361410,0.0022245,96908.0,96903.0,0.0154795]
[1738779361541,0.0022245,96908.0,96888.0,0.69200859]
[1738779361772,0.154817,96889.0,96876.0,0.69200859]
[1738779362024,0.154812,96892.0,96876.0,0.69200859]
[1738779362259,0.154814,96890.0,96865.0,0.69200859]
[1738779362434,1.60250365,96889.0,96866.0,0.00103218]
[1738779362588,0.154827,96882.0,96865.0,0.89848059]
[1738779362787,0.10353309,96881.0,96857.0,0.08199704]
[1738779363040,0.154844,96872.0,96857.0,0.08199704]
[1738779363213,0.10353309,96881.0,96850.0,0.21460547]
[1738779363412,0.00102944,96880.0,96847.0,0.0106913]
[1738779363611,0.154842,96873.0,96850.0,0.21563784]
[1738779363973,0.0451,96882.0,96861.0,0.15486]
[1738779363974,0.154836,96877.0,96861.0,0.15486]